{"text_format":"3","workbook":"xlsx","n_sheets":1,"sheets":["PRICING SCHEDULE"],"not_rendered":{"images":2,"defined_names":2},"read":"whole","date_system":"1900"}

{"sheet":"PRICING SCHEDULE","index":0,"n_rows":41,"n_cols":17,"rows_kept":41,"merged":[[11,2,11,3],[12,2,12,3],[12,5,14,5],[13,2,13,3],[14,2,14,3],[16,4,16,6],[16,7,16,9],[16,10,16,12],[37,1,40,1],[37,2,37,3],[37,4,37,5],[38,2,38,3],[39,2,39,3],[39,4,39,5],[40,2,40,3],[40,4,40,5]]}
[null,"SUPPLY CHAIN MANAGEMENT"]
[null,"Pricing schedule"]
["RFB No","RFB 3288/2025 (ERP 499016)"]
["RFN Title","REQUEST FOR BID FOR THE SUPPLY, CONFIGURATION, INSTALLATION INCLUDING MAINTEANCE AND SUPPORT OF LOCAL AREA NETWORK INFRASTRUCTURE (ARUBA SWITCHES AND WIFI ACCESS POINTS) FOR THE PERIOD OF 3 YEARS FOR THE DEPARTMENT OF WATER AND SANITATION (DWS) HEAD OFFICE (PHASE 2) IN PRETORIA "]
["Bidder Name "]
[]
["1. INSTRUCTION FOR COMPLETING THE PRICING SCHEDULE"]
["(a)  Bidder must complete/enter YELLOW cells only"]
["(b)  Unit and Line prices must be VAT EXCLUSIVE and in South African Rand (ZAR) currency."]
["(c) The price must include all cost to deliver the goods or render the service, including all applicable taxes, duty fees, logistics/delivery, storage, labour, overtime and subsistance and travel"]
["(d)  Prices that are dependent on Rate of Exchange (ROE) must use ROE indicated below, then enter in Column \"Forex %\" the percentage of the price that is ROE dependent (0% means the price is not ROE dependent)"]
[null,"Foreign currency","South African Rand (ZAR) exchange rate "]
[null,"1 US Dollar",{"$nulls":3},"Mark with an X, which ROE is applicable"]
[null,"1 Euro"]
[null,"1 Pound (UK)"]
[]
[{"$nulls":4},"Year 1 ",null,null,"YEAR 2",null,null,"YEAR 3",null,null,"TOTAL"]
["Item No","Goods/Service description","Unit of measure","Forex %","Qty ","Unit Price \n(Excl VAT)","Line Price Y1","Qty","Unit Price \n(Excl VAT)","Line Price Y2","Qty","Unit Price \n(Excl VAT)","Line Price Y3","Line Price Term \n(Excl VAT)","Forex Price portion","BRAND / MODEL (if applicable)","Price clarification comment (if applicable)"]
[null,"* ARUBA Access Switches, Core Switch and Wi-Fi Solution must be able to seamlessly integrate and operate with each other on the current network.\n* The solution to be able to accommodate a VOIP."]
["1.","NETWORK: EQUIPMENTS",{"$nulls":4},{"$f":"SUM(G21:G29)","v":0},{"$nulls":6},{"$f":"G20","v":0}]
[1.1,"Supply, install and configure Aruba Core 5412R zl2 (J9822A)","Each",{"v":0,"d":"0%"},2,0,{"$f":"E21*F21","v":0},{"$nulls":7},{"$f":"D21*G21","v":0}]
["1.2","Supply, install and configure Aruba 6200F 24G Class4 PoE 4SFP+ 370W Switch (JL725B)","Each",{"v":0,"d":"0%"},56,0,{"$f":"E22*F22","v":0},{"$nulls":7},0]
["1.3","Supply, install and configure Aruba 6200F 48G Class4 PoE 4SFP+ 370W Switch (JL727B)","Each",{"v":0,"d":"0%"},7,0,{"$f":"E23*F23","v":0},{"$nulls":7},0]
["1.4","Aruba 10G SFP+ LC SR 300m MMF Transceiver (J9150D)","Each",{"v":0,"d":"0%"},80,0,0,{"$nulls":7},0]
["1.5","Aruba 10G SFP+ to SFP+ 1m Direct Attach Copper Cable (J9281D)","Each",{"v":0,"d":"0%"},81,0,0,{"$nulls":7},0]
["1.6","Aruba 10G SFP+ to SFP+ 3m Direct Attach Copper Cable (J9283D)","Each",{"v":0,"d":"0%"},31,0,0,{"$nulls":7},0]
["1.7","Supply, Install and configure Aruba AP-615 (RW) Unified AP (R7J49A)","Each",{"v":0,"d":"0%"},200,0,0,{"$nulls":7},0]
["1.8","AP-MNT-D AP mount bracket individual D: solid surface (R3J18A)","Each",{"v":0,"d":"0%"},205,0,0,{"$nulls":7},{"$f":"D28*G28","v":0}]
["1.9","Aruba 5Y FC NBD for ALL networking hardware","Sum",{"v":0,"d":"0%"},1,0,0,{"$nulls":7},0]
[2,"NETWORK: GENERAL SERVICES",{"$nulls":4},{"$f":"SUM(G31:G32)","v":0},{"$nulls":6},{"$f":"G30","v":0},0]
["2.1","Install, configuration of all ARUBA switches and WIFI equipment","Sum",{"v":0,"d":"0%"},1,0,0,{"$nulls":7},0]
["2.2","3 Years service provider maintanace and support","Monthly",{"v":0,"d":"0%"},12,0,0,12,0,{"$f":"H32*I32","v":0},12,0,{"$f":"K32*L32","v":0},{"$f":"M32+J32","v":0},{"$f":"D28*G28","v":0}]
[null,"TOTAL BID PRICE  (EXCL VAT)",{"$nulls":4},{"$f":"G20+G30","v":0},null,null,{"$f":"J32","v":0},null,null,{"$f":"M32","v":0},{"$f":"N20+N30+N32","v":0},{"$f":"D29*G29","v":0}]
[null,"VAT (@15%)",{"$nulls":4},{"$f":"G33*0.15","v":0},null,null,{"$f":"J33*0.15","v":0},null,null,{"$f":"M33*0.15","v":0},{"$f":"N33*0.15","v":0},{"$f":"D30*G30","v":0}]
[null,"TOTAL  BID PRICE (INCL VAT)",{"$nulls":4},{"$f":"G33+G34","v":0},null,null,{"$f":"J33+J34","v":0},null,null,{"$f":"M33+M34","v":0},{"$f":"N33+N34","v":0},{"$f":"D31*G31","v":0}]
[]
[]
[null,"I, the bidder, confirm that the price(s) and rate(s) quoted cover all the goods and/or works specified in the bidding documents; that the price(s) or rate(s) cover all my obligations and I accept that any mistakes regarding price(s), rate(s) or calculations will be at my own risk.\n[Note: First convert to PDF, then add signature]",{"$nulls":4},"Kagiso Tshikare"]
[null,null,"Name",null,"Capacity",null,"Consultant: Switch & WIFI"]
[]
[null,null,"Signature (above)",null,"Date",null,"2026-09-08"]